Cogmind - Beta 13 @@@ ROGUE MODE // 2024.03.23 @ 20:49:20 Player: f_ Result: Destroyed by E0-FOP(R) with Subdweller Laser Performance ------------- Evolutions (0) 0 Regions Visited (3) 600 Robots Destroyed (28) 140 Value Destroyed (599) 599 Prototype IDs (0) 0 Alien Tech Used (0) 0 Bonus (0) 0 TOTAL SCORE: 1339 Bonus ------- None Cogmind --------- Core Integrity 0/250 Matter 280/300 Energy 99/100 System Corruption 1% Temperature Cool (6) Movement Core (200) Ox3 Location -10/Subcaves Parts ------- > --- POWER (1) -------- (None) > --- PROPULSION (2) --- (None) > --- UTILITY (2) ------ Medium Storage Unit > --- WEAPON (2) ------- (None) > --- INVENTORY (10) --- Light Ion Engine Subdweller Power Source Improved Heat Sink Weight Redist. System Signal Interpreter Hacking Suite Medium Laser Medium Laser Particle Gun Datajack Peak State ------------ > --- POWER ------------ Light Nuclear Core > --- PROPULSION ------- Aluminum Leg Aluminum Leg > --- UTILITY ---------- Medium Storage Unit Targeting Computer > --- WEAPON ----------- EM Pulse Gun Medium Laser > --- INVENTORY -------- Light Ion Engine Structural Scanner Signal Interpreter Medium Laser Small Laser Particle Gun Light Assault Rifle Light Cannon Grenade Launcher [Rating: 10] Favorites ----------- Power Light Ion Engine Engine Light Ion Engine Power Core Light Nuclear Core Propulsion Aluminum Leg Leg Aluminum Leg Utility Medium Storage Unit Device Improved Terrain Scanner Storage Medium Storage Unit Processor Targeting Computer Weapon Light Cannon Energy Gun Medium Laser Ballistic Gun Light Assault Rifle Ballistic Cannon Light Cannon Launcher Grenade Launcher Build | -11 -10 -10 -10 ------- Run | Yrd Mat Min Sub Slots Evolved . | . . . . Power . | . . . . Propulsion . | . . . . Utility . | . . . . Weapon . | . . . . Parts Attached 25 | 6 10 4 5 Power 9 | 1 3 1 4 Engine 8 | 1 2 1 4 Core 1 | . 1 . . Reactor . | . . . . Propulsion 5 | 2 2 1 . Treads . | . . . . Leg 5 | 2 2 1 . Wheel . | . . . . Hover . | . . . . Flight . | . . . . Utility 5 | 1 3 1 . Device 2 | . 1 1 . Storage 2 | 1 1 . . Processor 1 | . 1 . . Hackware . | . . . . Protection . | . . . . Artifact . | . . . . Weapon 6 | 2 2 1 1 Energy Gun 2 | 1 1 . . Energy Cannon . | . . . . Ballistic Gun 1 | 1 . . . Ballistic Cannon 1 | . . 1 . Launcher 2 | . 1 . 1 Special Weapon . | . . . . Impact Weapon . | . . . . Slashing Weapon . | . . . . Piercing Weapon . | . . . . Special Melee Weapon . | . . . . Unidentified Prototypes . | . . . . Parts Lost 8 | . . 3 5 Power 1 | . . . 1 Propulsion 3 | . . 2 1 Utility 1 | . . . 1 Weapon 3 | . . 1 2 Highest Loss Streak 5 | . . 1 5 To Critical Strikes . | . . . . Average Slot Usage (%) 86 | . 99 85 84 Engine 13 | . 6 14 13 Leg 15 | . 28 14 13 Device 12 | . 5 10 14 Storage 14 | . 14 14 14 Energy Gun 4 | . 26 14 1 Ballistic Cannon 12 | . . 13 13 Launcher 10 | . . . 12 Naked Turns . | . . . . Heaviest Build 22 | 11 19 20 22 Greatest Support 20 | 20 20 20 10 Greatest Overweight (x) 6 | . . 6 3 Average Overweight (x) . | . . 1 1 Largest Inventory Capacity 10 | 8 10 10 10 Average Capacity 9 | 7 9 10 10 Most Carried 10 | 3 10 10 10 Average Carried 9 | . 7 9 9 Final Capacity 10 | 8 10 10 10 Final Carried 10 | 1 10 9 10 Class Distribution -------------------- 100% | Mutant Dominant Class ---------------- Mutant | -10/Materials Mutant | -10/Mines Mutant | -10/Subcaves Resources | -11 -10 -10 -10 ----------- Run | Yrd Mat Min Sub Matter Collected 691 | 260 116 167 148 Remotely . | . . . . Salvage Created 960 | 85 651 175 49 Parts 67 | 4 43 17 3 Haulers Intercepted 1 | . 1 . . Recyclers Shooed 1 | . 1 . . Parts Field Recycled . | . . . . Retrieved Matter . | . . . . Parts Self-Destructed 6 | . . . 6 Prevented . | . . . . Kills | -11 -10 -10 -10 ------- Run | Yrd Mat Min Sub Combat Hostiles Destroyed 20 | . 11 8 1 Guns 15 | . 11 4 . Cannons 4 | . . 4 . AOE 1 | . . . 1 Classes Destroyed 9 | 1 6 1 1 Worker 1 | . 1 . . Tunneler 1 | . . 1 . Hauler 1 | . 1 . . Recycler 2 | 1 1 . . Operator 1 | . 1 . . Watcher 2 | . 2 . . Swarmer 9 | . 3 6 . Grunt 10 | . 8 2 . Subdweller 1 | . . . 1 Best Kill Streak 4 | 1 3 4 1 Combat Bots Only 3 | . 3 3 1 Max Kills in Single Turn 2 | 1 2 1 1 Gunslinging . | . . . . Exploded 1 | . . . 1 Melee . | . . . . Uniques/NPCs Destroyed . | . . . . Combat | -11 -10 -10 -10 -------- Run | Yrd Mat Min Sub Hostile Shots Fired 108 | . 43 42 23 Missed 26 | . 14 7 5 Damage Taken 1170 | . 373 417 380 Core 267 | . 68 116 83 Absorbed by Shields . | . . . . Core Remaining (%) 100 | 100 . . . Volleys Fired 87 | 5 49 20 13 Largest 2 | 1 2 2 1 Hottest 90 | 40 90 90 35 Shots Fired 157 | 5 97 40 15 Gun 122 | 5 96 21 . Cannon 32 | . . 19 13 Launcher 3 | . 1 . 2 Special . | . . . . Kinetic 33 | . 1 19 13 Thermal 67 | . 47 20 . Explosive 3 | . 1 . 2 Electromagnetic 54 | 5 48 1 . Robot Hit Streak 15 | 1 15 7 10 Robot Miss Streak 4 | 2 3 4 1 Penetration Max . | . . . . Secondary Targets . | . . . . Shots Hit Robots 93 | 2 60 21 10 Core Hits 43 | 1 29 11 2 Critical Kills . | . . . . Critical Parts Destroyed . | . . . . Critical Strikes 2 | . 2 . . Burn 2 | . 2 . . Melee Attacks . | . . . . Impact . | . . . . Slashing . | . . . . Piercing . | . . . . Sneak Attacks . | . . . . Combat Hostiles . | . . . . Follow-up Attacks . | . . . . Damage Inflicted 1510 | 27 1089 319 75 Guns 976 | 27 788 161 . Cannons 173 | . . 158 15 Explosions 361 | . 301 . 60 Melee . | . . . . Ramming . | . . . . Kinetic 173 | . . 158 15 Thermal 799 | . 638 161 . Explosive 60 | . . . 60 Electromagnetic 478 | 27 451 . . Impact . | . . . . Slashing . | . . . . Piercing . | . . . . Highest Corruption 1 | . 1 1 1 Average Corruption 1 | . 1 1 1 Corruption Purged . | . . . . Corruption Blocked . | . . . . Effects 61 | . 3 7 51 Message Errors 20 | . 1 2 17 Matter Fused 10 | . 1 . 9 Heat Flow Errors 9 | . . 3 6 Energy Discharges 7 | . . . 7 Data Loss (minor) 9 | . . 2 7 Data Loss (major) 2 | . . . 2 Misfires 3 | . 1 . 2 Alerts 1 | . . . 1 Overload Shots . | . . . . Overflow Damage 3 | . 3 . . Projectiles . | . . . . Explosions 3 | . 3 . . Melee . | . . . . Knockbacks 3 | . . 3 . Impact . | . . . . Kinetic 3 | . . 3 . Secondary . | . . . . Self-Inflicted Damage 52 | . 52 . . Shots 2 | . 2 . . Rammed . | . . . . Targets Rammed . | . . . . Kicked . | . . . . Crushed . | . . . . Highest Temperature 360 | . 360 350 260 Average Temperature 107 | . 95 128 108 Received Heat Transfer 468 | . 159 225 84 Effects 4 | . 1 3 . Shutdowns 1 | . 1 . . Energy Bleed 2 | . . 2 . Matter Decay 1 | . . 1 . Siege Activations . | . . . . Robots Corrupted . | . . . . Combat Hostiles . | . . . . Parts Fried 1 | . 1 . . Impact Corruptions . | . . . . Robots Melted . | . . . . Combat Hostiles . | . . . . Parts Melted 3 | . 3 . . Heat Transferred 1878 | . 1397 481 . Parts Sabotaged . | . . . . Parts Stolen . | . . . . Parts Stripped . | . . . . Power Chain Reactions 4 | . 4 . . Alert | -11 -10 -10 -10 ------- Run | Yrd Mat Min Sub Peak Influence 236 | 5 236 186 . Initial 91 | . 3 91 . Average 118 | 3 119 132 . Maximum Alert Level 1 | . 1 . . Low Security (%) 88 | 100 78 100 . Level 1 11 | . 21 . . Level 2 . | . . . . Level 3 . | . . . . Level 4 . | . . . . Level 5 . | . . . . High Security . | . . . . Max Security . | . . . . Squads Dispatched 1 | . 1 . . Investigation . | . . . . Extermination . | . . . . Reinforcement 1 | . 1 . . Assault . | . . . . Garrison . | . . . . Intercept . | . . . . Searches Triggered . | . . . . Construction Impeded . | . . . . Haulers Reinforced . | . . . . Active Scanning Responses . | . . . . Cargo Convoy Interrupts . | . . . . Stealth | -11 -10 -10 -10 --------- Run | Yrd Mat Min Sub Distress Signals . | . . . . Communications Jammed . | . . . . Distress Signals . | . . . . Times Spotted 30 | . 19 8 3 Peak Tracking Total 4 | . 4 3 2 Tactical Retreats 1 | . 1 . . Traps | -11 -10 -10 -10 ------- Run | Yrd Mat Min Sub Traps Triggered 1 | . 1 . . Indirectly . | . . . . Trap Hack Attempts . | . . . . Triggered . | . . . . Disarmed . | . . . . Reprogrammed . | . . . . Reused . | . . . . Traps Extracted . | . . . . Installed . | . . . . Triggered . | . . . . Machines | -11 -10 -10 -10 ---------- Run | Yrd Mat Min Sub Machines Disabled 2 | . 2 . . Max in Single Turn 1 | . 1 . . Machines Repaired . | . . . . Machines Dismantled . | . . . . Machines Sabotaged . | . . . . Overloaded Fab Kills . | . . . . Hacking | -11 -10 -10 -10 --------- Run | Yrd Mat Min Sub Machines Accessed 4 | . 4 . . Terminals 4 | . 4 . . Fabricators . | . . . . Repair Stations . | . . . . Recycling Units . | . . . . Scanalyzers . | . . . . Garrison Access . | . . . . Total Hacks 5 | . 5 . . Successful 2 | . 2 . . Failed 3 | . 3 . . Catastrophic 2 | . 2 . . Database Lockouts . | . . . . Manual . | . . . . Terminals 5 | . 5 . . Fabricators . | . . . . Repair Stations . | . . . . Recycling Units . | . . . . Scanalyzers . | . . . . Garrison Access . | . . . . Terminal Hacks 2 | . 2 . . Branch Access Points 1 | . 1 . . Registered Components 1 | . 1 . . Fabricator Hacks . | . . . . Repair Station Hacks . | . . . . Recycling Unit Hacks . | . . . . Scanalyzer . | . . . . Garrison Access Hacks . | . . . . Unauthorized Hacks . | . . . . Terminals . | . . . . Fabricators . | . . . . Repair Stations . | . . . . Recycling Units . | . . . . Scanalyzers . | . . . . Garrison Access . | . . . . Data Cores Recovered . | . . . . Used . | . . . . Hacking Detections 3 | . 3 . . Full Trace Events . | . . . . Feedback Events . | . . . . Feedback Blocked . | . . . . Robot Schematics Acquired . | . . . . Robots Built . | . . . . Authchips . | . . . . Time . | . . . . Total Robot Build Rating . | . . . . Part Schematics Acquired . | . . . . Parts Built . | . . . . Authchips . | . . . . Time . | . . . . Total Part Build Rating . | . . . . Parts Repaired . | . . . . Time . | . . . . Parts Recycled . | . . . . Recycled Matter . | . . . . Retrieved Matter . | . . . . Retrieved Components . | . . . . Parts Scanalyzed . | . . . . Part Schematics Acquired . | . . . . Parts Damaged . | . . . . Bothacking | -11 -10 -10 -10 ------------ Run | Yrd Mat Min Sub Used RIF Installer . | . . . . Robots Hacked . | . . . . Non-combat . | . . . . Combat . | . . . . Robot Hacks Applied . | . . . . Relay Couplers Released . | . . . . Fabnet Peak Effective % . | . . . . Robots Rewired . | . . . . Allies Hacked . | . . . . Hacks Repelled . | . . . . Allies | -11 -10 -10 -10 -------- Run | Yrd Mat Min Sub Total Allies . | . . . . Largest Group . | . . . . Highest-Rated Group . | . . . . Highest-Rated Ally . | . . . . Total Orders . | . . . . Ally Attacks . | . . . . Total Damage . | . . . . Kills . | . . . . Allies Corrupted . | . . . . Allies Melted . | . . . . Intel | -11 -10 -10 -10 ------- Run | Yrd Mat Min Sub Robot Analysis Total . | . . . . Derelict Logs Recovered 1 | . . . 1 Drone Launches . | . . . . Drone Recoveries . | . . . . Exploration | -11 -10 -10 -10 ------------- Run | Yrd Mat Min Sub Turns Passed 8338 | 84 776 598 6880 Spaces Moved 993 | 54 462 167 310 Core 14 | 5 . 3 6 Treads . | . . . . Legs 979 | 49 462 164 304 Wheels . | . . . . Hover . | . . . . Flight . | . . . . Fastest Speed 50 | 50 120 120 190 Average Speed 163 | 113 120 186 223 Slowest Speed 350 | 120 120 350 260 Overloaded Moves . | . . . . Propulsion Burnouts . | . . . . Robots Hopped . | . . . . Cave-ins Triggered . | . . . . Exploration Rate (%) 36 | 4 79 41 22 Regions Visited 3 Branch Regions 2 Pre-discovered Areas . | . . . . Known Exits Taken 1 | . 1 . . Unknown Exits Taken 2 | 1 . 1 . Scrap Searched 1 | . . 1 . Spaces Dug 6 | . 6 . . Terrain Destroyed 23 | . 14 . 9 Melee . | . . . . Projectile . | . . . . AOE 23 | . 14 . 9 Terrain Rammed . | . . . . Walls Destroyed . | . . . . Machines Disabled . | . . . . Actions | -11 -10 -10 -10 --------- Run | Yrd Mat Min Sub Total 7558 | 71 589 415 6483 Wait 6410 | . 40 218 6152 Move 990 | 53 461 166 310 Hop . | . . . . Pick Up 32 | 7 19 4 2 Fast Attach . | . . . . Attach 10 | 6 1 3 . Detach . | . . . . Swap 15 | . 9 1 5 Drop 14 | . 10 3 1 Fire 87 | 5 49 20 13 Melee . | . . . . Ram . | . . . . Kick . | . . . . Crush . | . . . . Escape Stasis . | . . . . Rewire . | . . . . Trap . | . . . . Miscellaneous . | . . . . Route ------- -11/Scrapyard -10/Materials (discovered 5 exits: [*Mat x3] / *Min x2) -10/Mines (discovered 2 exits: [*Mat] / [*Sub]) -10/Subcaves (discovered 1 exit: *Mat) History --------- Turn | Location | Event 27 | -11/Scrapyard | Discovered new exit (range 15) 85 | -11/Scrapyard | Entered Materials 85 | -10/Materials | Discovered new exit (range 8) 268 | -10/Materials | Identified exit to Mines 286 | -10/Materials | Discovered new exit (range 11) 302 | -10/Materials | Build established: Mutant 479 | -10/Materials | Discovered new exit (range 13) 648 | -10/Materials | Discovered new exit (range 15) 861 | -10/Materials | Entered Mines 920 | -10/Mines | Core integrity fell below 50% 1177 | -10/Mines | Found a hidden stash of uninstalled traps 1274 | -10/Mines | Discovered new exit (range 5) 1434 | -10/Mines | Discovered new exit (range 4) 1459 | -10/Mines | Entered Subcaves 1467 | -10/Subcaves | Identified exit to Materials 5517 | -10/Subcaves | Shifting Twisted Machinery released Scrap Shield 5521 | -10/Subcaves | Shifting Twisted Machinery released Mak. Axe 5937 | -10/Subcaves | Shifting Twisted Machinery released Sub. Power Source 8331 | -10/Subcaves | Core integrity fell below 20% 8339 | -10/Subcaves | Destroyed by E0-FOP(R) with Subdweller Laser Last Messages --------------- data lost. 07891_ 53&C6L L6A>DE#PUBSWMURHRF, 08012_ System corrupted: Component data lost. 08051_ 2JP ZQLXVYCEIDU2KL/X> &KHY2>FQDK 08131_ System corrupted: Heat flow error (+261). 08225_ System corrupted: FCS attempts to trigger Grenade Launcher. 08225_ System corrupted: Grenade Launcher misfires. 08260_ System corrupted: Heat flow error (+103). 08275_ Acquired 49 matter. 08277_ System corrupted: Matter fused (-8). 08280_ Acquired 60 matter. 08299_ E0-FOP(R): "SUBMAD!" 08318_ Grenade Launcher destroyed. 08320_ The unstable cave ceiling collapses. 08326_ Aluminum Leg destroyed. 08328_ Ion Engine destroyed. 08328_ Lgt. Cannon destroyed. 08330_ Imp. Terrain Scanner destroyed. Map ----- +----------------------------------------------------+ | ?????????????????????????????????????????????????? | | ?????????????????????????????????????????????????? | | ?????????????????????????????????????????????????? | | ?????????????????????????????????????????????????? | | ?????????????????????????????????????????????????? | | ?????????????????????????????????????????????????? | | ?????????????????????????????????????????????????? | | ????????????????????????? ???????????????????????? | | ??????????????????????????????? ?????????????????? | | ???????????????????????????? ??? ??#?????????????? | | ?????????????????????????????? ? ## ??#??????????? | | ???????????????????????????????? ?????????????? | | ??????????????????????#??#?????? ??#??????????? | | ???????????????? ?????????#?#??? #?#???????????? | | ?????????????????????????????? ?" #????????????#? | | ???????????????????????????????#" ##??????#?????? | | ???????????????????"???????#??##" ####?????????? | | ?????????????????????####?????? " #??????#??# | | ??????????????????????# ####?##" ##??#?????# | | ??????????????????????# """"#### ##??#???### | | ?????????????????????##""""""""# #?#????# | | ???????????????????????# " ##?##??# | | ?????????????????? ????## R % ####???# | | ????????????????????????## R# # ## ##???# | | ??????????????????####"## ### # %###?#?# | | ??????????????????# " @ ### ###### | | ??????????????????# # # # | | ??????????????? ???### | | ????????????????????????## | | ?????????????????????????### ## | | ??????????????????? ???????##### ##### | | ?????????????????????#??#??????# ## #?##? | | ????????????????????????#????? ### ### # | | ???????????????????????? ? ? #?## ## | | ??????????????????????? ??? ########### | | ?????????????????????????? # #####????#???## | | ???????????????????????????#### ###?????##??###?## | | ??????????????????????????????##??#?##??####?#???# | | ??????????????????????????????#????#????????####?? | | ????????????????????????????????????#??#?????????# | | ???????????????????????????????????##?#???#??????# | | ????????????????????????????????????#???##?##??#?? | | ??????????????????????????????????????#??????????? | | ???????????????????????????????????????#??#????#?? | | ??????????????????????????????????????#??#???#???? | | ??????????????????????????????????????????????#??# | | ????????????????????????????????????????#???##?### | | ?????????????????????????????????????????????#???? | | ????????????????????????????????????????????????## | | ?????????????????????????????????????????????????? | +----------------------------------------------------+ Best States ------------- Heat Dissipation 25 Energy Generation 15 Energy Capacity 250 Matter Stores 300 Matter Capacity 300 Sight Range 16 Terrain Scan Range 16 Terrain Scan Density 10 Evasion (%) 55 Targeting Accuracy 5 Item Schematics ----------------- None Robot Schematics ------------------ None Fabricated ------------ Nothing Alien Tech Used ----------------- None Achievements -------------- None Challenges ------------ None Game ------ Seed ReactionModifiedWings Manual? 0 Play Time 00:24:14 Cumulative 42.4 hours Start 2024.03.23 @ 20:24:26 End 2024.03.23 @ 20:49:20 Sessions 1 Manual Loads 0 Difficulty Rogue Special Mode None Game No. 31 Rogue 29 Adventurer 0 Explorer 2 Win Type - Total 0 Types 0/0/0/0/0/0/0/0/0 Lore% 15 Gallery% 26 Achievement% 19 Wizard Run 0 Options --------- Layout 1 ASCII 0 Keyboard 0 Movement Mouse Keybinds 0 Fullscreen 2 Font 48/Tamsyn Map View 50x35 Zoom Use 0% Tactical HUD 1 Map Filters NONE Filters NONE Steam 1 RUN: 2f9e53d5-6658-4e05-896b-0ec4c163e3ee